fUST/lending_fUST_20250828
["ID","MTS","AMOUNT","RATE_DAILY","PERIOD"]
[381831138,1756362640070,-480.0,0.00019178,2]
[381831139,1756362640080,-480.0,0.00019178,2]
[381831141,1756362640090,-480.0,0.00019178,2]
[381831144,1756362640100,-480.0,0.00019178,2]
[381831146,1756362640109,-480.0,0.00019178,2]
[381831147,1756362640119,-480.0,0.00019178,2]
[381831150,1756362640130,-480.0,0.00019178,2]
[381831151,1756362640139,-480.0,0.00019178,2]
[381831154,1756362640149,-480.0,0.00019178,2]
[381831155,1756362640158,-480.0,0.00019178,2]
[381831156,1756362640169,-480.0,0.00019178,2]
[381831158,1756362640178,-960.12,0.00019178,2]
[381831159,1756362640187,-480.0,0.00019178,2]
[381831161,1756362640197,-480.0,0.00019178,2]
[381831163,1756362640206,-490.48,0.00019178,2]
[381831165,1756362640215,-480.0,0.00019178,2]
[381831166,1756362640225,-828.31,0.00019178,2]
[381831167,1756362640234,-637.74,0.00019178,2]
[381831168,1756362640243,-480.0,0.00019178,2]
[381831169,1756362640252,-480.0,0.00019178,2]
[381831170,1756362640262,-480.0,0.00019178,2]
[381831171,1756362640272,-1048.74,0.00019178,2]
[381831172,1756362640281,-480.0,0.00019178,2]
[381831173,1756362640291,-480.0,0.00019178,2]
[381831174,1756362640300,-562.9,0.00019178,2]
[381831175,1756362640310,-580.59,0.00019178,2]
[381831176,1756362640320,-480.0,0.00019178,2]
[381831177,1756362640329,-480.0,0.00019178,2]
[381831178,1756362640338,-480.0,0.00019178,2]
[381831179,1756362640348,-636.67071483,0.00019178,2]
[381831180,1756362640357,-480.0,0.00019178,2]
[381831181,1756362640366,-480.0,0.00019178,2]
[381831182,1756362640376,-480.0,0.00019178,2]
[381831183,1756362640386,-480.0,0.00019178,2]
[381831184,1756362640395,-480.0,0.00019178,2]
[381831185,1756362640408,-480.0,0.00019178,2]
[381831186,1756362640417,-480.0,0.00019178,2]
[381831187,1756362640427,-480.0,0.00019178,2]
[381831188,1756362640436,-480.0,0.00019178,2]
[381831189,1756362640445,-528.41,0.00019178,2]
[381831190,1756362640454,-480.0,0.00019178,2]
[381831191,1756362640464,-480.0,0.00019178,2]
[381831192,1756362640473,-480.0,0.00019178,2]
[381831193,1756362640482,-480.0,0.00019178,2]
[381831194,1756362640491,-480.0,0.00019178,2]
[381831195,1756362640501,-480.0,0.00019178,2]
[381831196,1756362640510,-479.54842179,0.00019178,2]
[381831197,1756362640520,-480.0,0.00019178,2]
[381831198,1756362640529,-480.0,0.00019178,2]
[381831199,1756362640538,-480.0,0.00019178,2]
[381831200,1756362640548,-485.76,0.00019178,2]
[381831201,1756362640558,-480.0,0.00019178,2]
[381831202,1756362640567,-522.64,0.00019178,2]
[381831203,1756362640578,-520.03,0.00019178,2]
[381831204,1756362640587,-480.0,0.00019178,2]
[381831205,1756362640598,-480.0,0.00019178,2]
[381831206,1756362640608,-480.0,0.00019178,2]
[381831207,1756362640618,-524.49,0.00019178,2]
[381831208,1756362640627,-480.0,0.00019178,2]
[381831209,1756362640637,-480.0,0.00019178,2]
[381831210,1756362640646,-480.0,0.00019178,2]
[381831211,1756362640656,-480.0,0.00019178,2]
[381831212,1756362640665,-480.0,0.00019178,2]
[381831213,1756362640675,-480.0,0.00019178,2]
[381831214,1756362640684,-1012.3,0.00019178,2]
[381831215,1756362640694,-480.0,0.00019178,2]
[381831216,1756362640704,-480.0,0.00019178,2]
[381831217,1756362640713,-480.0,0.00019178,2]
[381831218,1756362640723,-480.0,0.00019178,2]
[381831219,1756362640732,-639.48,0.00019178,2]
[381831220,1756362640742,-697.25,0.00019178,2]
[381831221,1756362640752,-840.77,0.00019178,2]
[381831222,1756362640762,-508.49,0.00019178,2]
[381831223,1756362640772,-480.0,0.00019178,2]
[381831224,1756362640782,-652.31,0.00019178,2]
[381831225,1756362640792,-481.64955776,0.00019178,2]
[381831226,1756362640802,-559.16,0.00019178,2]
[381831227,1756362640812,-480.0,0.00019178,2]
[381831228,1756362640824,-558.06,0.00019178,2]
[381831229,1756362640834,-480.0,0.00019178,2]
[381831230,1756362640843,-480.0,0.00019178,2]
[381831231,1756362640853,-480.0,0.00019178,2]
[381831232,1756362640862,-480.0,0.00019178,2]
[381831233,1756362640872,-645.86,0.00019178,2]
[381831234,1756362640882,-648.18,0.00019178,2]
[381831235,1756362640891,-362.04430933,0.00019178,2]
[381831236,1756362640901,-480.0,0.00019178,2]
[381831237,1756362640911,-620.81,0.00019178,2]
[381831238,1756362640920,-480.0,0.00019178,2]
[381831239,1756362640930,-480.0,0.00019178,2]
[381831240,1756362640940,-480.0,0.00019178,2]
[381831241,1756362640950,-480.0,0.00019178,2]
[381831242,1756362640959,-480.0,0.00019178,2]
[381831243,1756362640969,-480.0,0.00019178,2]
[381831244,1756362640979,-480.0,0.00019178,2]
[381831245,1756362640988,-732.32,0.00019178,2]
[381831246,1756362640998,-480.0,0.00019178,2]
[381831247,1756362641008,-480.0,0.00019178,2]
[381831248,1756362641018,-487.37,0.00019178,2]
[381831249,1756362641028,-480.0,0.00019178,2]
[381831250,1756362641039,-480.0,0.00019178,2]
[381831251,1756362641049,-480.0,0.00019178,2]
[381831252,1756362641059,-480.0,0.00019178,2]
[381831253,1756362641069,-329.26065259,0.00019178,2]
[381831254,1756362641080,-480.0,0.00019178,2]
[381831255,1756362641089,-480.0,0.00019178,2]
[381831256,1756362641100,-480.0,0.00019178,2]
[381831257,1756362641110,-480.0,0.00019178,2]
[381831258,1756362641130,-480.0,0.00019178,2]
[381831259,1756362641152,-480.0,0.00019178,2]
[381831260,1756362641170,-480.0,0.00019178,2]
[381831261,1756362641180,-480.0,0.00019178,2]
[381831262,1756362641190,-480.0,0.00019178,2]
[381831263,1756362641200,-480.0,0.00019178,2]
[381831264,1756362641211,-480.0,0.00019178,2]
[381831265,1756362641221,-480.0,0.00019178,2]
[381831266,1756362641231,-480.0,0.00019178,2]
[381831267,1756362641240,-480.0,0.00019178,2]
[381831268,1756362641250,-501.09,0.00019178,2]
[381831269,1756362641260,-480.0,0.00019178,2]
[381831270,1756362641270,-480.0,0.00019178,2]
[381831271,1756362641280,-974.09,0.00019178,2]
[381831272,1756362641290,-480.0,0.00019178,2]
[381831273,1756362641300,-480.0,0.00019178,2]
[381831274,1756362641311,-480.0,0.00019178,2]
[381831275,1756362641322,-480.0,0.00019178,2]
[381831276,1756362641333,-864.05,0.00019178,2]
[381831277,1756362641342,-480.0,0.00019178,2]
[381831278,1756362641352,-480.0,0.00019178,2]
[381831279,1756362641362,-480.0,0.00019178,2]
[381831280,1756362641371,-480.0,0.00019178,2]
[381831281,1756362641381,-480.0,0.00019178,2]
[381831282,1756362641391,-480.0,0.00019178,2]
[381831283,1756362641401,-480.0,0.00019178,2]
[381831284,1756362641415,-480.0,0.00019178,2]
[381831285,1756362641425,-480.0,0.00019178,2]
[381831286,1756362641434,-480.0,0.00019178,2]
[381831287,1756362641444,-619.43,0.00019178,2]
[381831288,1756362641454,-480.0,0.00019178,2]
[381831289,1756362641464,-513.02,0.00019178,2]
[381831290,1756362641474,-480.0,0.00019178,2]
[381831291,1756362641485,-480.0,0.00019178,2]
[381831292,1756362641495,-480.0,0.00019178,2]
[381831293,1756362641504,-480.0,0.00019178,2]
[381831294,1756362641514,-480.0,0.00019178,2]
[381831295,1756362641523,-480.0,0.00019178,2]
[381831296,1756362641532,-480.0,0.00019178,2]
[381831297,1756362641542,-388.60873505,0.00019178,2]
[381831298,1756362641551,-480.0,0.00019178,2]
[381831299,1756362641561,-480.0,0.00019178,2]
[381831300,1756362641572,-482.03593594,0.00019178,2]
[381831301,1756362641581,-480.0,0.00019178,2]
[381831302,1756362641591,-480.0,0.00019178,2]
[381831303,1756362641600,-480.0,0.00019178,2]
[381831304,1756362641610,-480.0,0.00019178,2]
[381831305,1756362641619,-500.81980917,0.00019178,2]
[381831306,1756362641629,-527.3,0.00019178,2]
[381831307,1756362641638,-263.46250572,0.00019178,2]
[381831308,1756362641648,-489.39,0.00019178,2]
[381831309,1756362641657,-480.0,0.00019178,2]
[381831310,1756362641667,-480.0,0.00019178,2]
[381831311,1756362641676,-480.0,0.00019178,2]
[381831312,1756362641686,-480.0,0.00019178,2]
[381831313,1756362641695,-480.0,0.00019178,2]
[381831314,1756362641705,-480.0,0.00019178,2]
[381831315,1756362641715,-482.37911491,0.00019178,2]
[381831316,1756362641725,-480.0,0.00019178,2]
[381831317,1756362641734,-480.0,0.00019178,2]
[381831318,1756362641744,-480.0,0.00019178,2]
[381831319,1756362641753,-480.0,0.00019178,2]
[381831320,1756362641763,-480.0,0.00019178,2]
[381831321,1756362641772,-480.0,0.00019178,2]
[381831322,1756362641782,-579.54515618,0.00019178,2]
[381831323,1756362641791,-480.0,0.00019178,2]
[381831324,1756362641801,-190.01134477,0.00019178,2]
[381831325,1756362641810,-480.0,0.00019178,2]
[381831326,1756362641819,-722.45,0.00019178,2]
[381831327,1756362641829,-480.0,0.00019178,2]
[381831328,1756362641838,-480.0,0.00019178,2]
[381831329,1756362641849,-764.74,0.00019178,2]
[381831330,1756362641858,-481.73283887,0.00019178,2]
[381831331,1756362641867,-271.99594611,0.00019178,2]
[381831332,1756362641877,-1069.38,0.00019178,2]
[381831333,1756362641887,-480.0,0.00019178,2]
[381831334,1756362641896,-480.0,0.00019178,2]
[381831335,1756362641906,-480.0,0.00019178,2]
[381831336,1756362641915,-480.0,0.00019178,2]
[381831337,1756362641925,-480.0,0.00019178,2]
[381831338,1756362641978,-500.0,0.00019178,2]
[381831339,1756362641988,-480.0,0.00019178,2]
[381831340,1756362641997,-485.36178357,0.00019178,2]
[381831341,1756362642007,-1084.34,0.00019178,2]
[381831342,1756362642016,-480.0,0.00019178,2]
[381831343,1756362642025,-647.49,0.00019178,2]
[381831344,1756362642034,-480.0,0.00019178,2]
[381831345,1756362642044,-925.43,0.00019178,2]
[381831346,1756362642053,-480.0,0.00019178,2]
[381831347,1756362642062,-480.0,0.00019178,2]
[381831348,1756362642072,-480.0,0.00019178,2]
[381831349,1756362642082,-480.0,0.00019178,2]
[381831350,1756362642091,-480.0,0.00019178,2]
[381831351,1756362642100,-481.82512107,0.00019178,2]
[381831352,1756362642109,-732.4,0.00019178,2]
[381831353,1756362642118,-661.08,0.00019178,2]
[381831354,1756362642127,-480.0,0.00019178,2]
[381831355,1756362642137,-616.61,0.00019178,2]
[381831356,1756362642146,-2172.91,0.00019178,2]
[381831357,1756362642155,-480.0,0.00019178,2]
[381831358,1756362642165,-480.0,0.00019178,2]
[381831359,1756362642174,-480.0,0.00019178,2]
[381831360,1756362642183,-274.13897531,0.00019178,2]
[381831361,1756362642193,-480.0,0.00019178,2]
[381831362,1756362642202,-480.0,0.00019178,2]
[381831363,1756362642211,-480.0,0.00019178,2]
[381831364,1756362642221,-1041.45,0.00019178,2]
[381831365,1756362642230,-480.0,0.00019178,2]
[381831366,1756362642239,-480.0,0.00019178,2]
[381831367,1756362642248,-474.99994369,0.00019178,2]
[381831368,1756362642257,-923.24,0.00019178,2]
[381831369,1756362642267,-480.0,0.00019178,2]
[381831370,1756362642276,-480.0,0.00019178,2]
[381831371,1756362642285,-480.0,0.00019178,2]
[381831372,1756362642294,-1215.15,0.00019178,2]
[381831373,1756362642303,-480.0,0.00019178,2]
[381831374,1756362642313,-480.0,0.00019178,2]
[381831375,1756362642324,-480.0,0.00019178,2]
[381831376,1756362642333,-480.0,0.00019178,2]
[381831377,1756362642342,-480.0,0.00019178,2]
[381831378,1756362642351,-480.0,0.00019178,2]
[381831379,1756362642361,-339.65514845,0.00019178,2]
[381831380,1756362642370,-480.0,0.00019178,2]
[381831381,1756362642379,-480.0,0.00019178,2]
[381831382,1756362642389,-480.0,0.00019178,2]
[381831383,1756362642398,-480.0,0.00019178,2]
[381831384,1756362642412,-480.0,0.00019178,2]
[381831385,1756362642421,-611.68322393,0.00019178,2]
[381831386,1756362642430,-481.95220156,0.00019178,2]
[381831387,1756362642439,-480.0,0.00019178,2]
[381831388,1756362642448,-480.0,0.00019178,2]
[381831389,1756362642458,-2780.95,0.00019178,2]
[381831390,1756362642467,-159.66397549,0.00019178,2]
[381831391,1756362642477,-691.24,0.00019178,2]
[381831392,1756362642486,-480.0,0.00019178,2]
[381831393,1756362642497,-480.0,0.00019178,2]
[381831394,1756362642506,-480.0,0.00019178,2]
[381831395,1756362642515,-497.33948725,0.00019178,2]
[381831396,1756362642524,-480.0,0.00019178,2]
[381831397,1756362642534,-480.0,0.00019178,2]
[381831398,1756362642543,-1500.35,0.00019178,2]
[381831399,1756362642552,-480.0,0.00019178,2]
[381831400,1756362642562,-481.49821426,0.00019178,2]
[381831401,1756362642571,-480.0,0.00019178,2]
[381831402,1756362642581,-480.0,0.00019178,2]
[381831403,1756362642590,-588.87,0.00019178,2]
[381831404,1756362642599,-480.0,0.00019178,2]
[381831405,1756362642608,-1501.37,0.00019178,2]
[381831406,1756362642617,-480.0,0.00019178,2]
[381831407,1756362642628,-480.0,0.00019178,2]
[381831408,1756362642637,-866.76,0.00019178,2]
[381831409,1756362642646,-480.0,0.00019178,2]
[381831410,1756362642657,-480.0,0.00019178,2]
[381831411,1756362642667,-480.0,0.00019178,2]
[381831412,1756362642676,-480.0,0.00019178,2]
[381831413,1756362642686,-732.71,0.00019178,2]
[381831414,1756362642695,-480.0,0.00019178,2]
[381831415,1756362642704,-480.0,0.00019178,2]
[381831416,1756362642714,-480.0,0.00019178,2]
[381831417,1756362642723,-536.9,0.00019178,2]
[381831418,1756362642733,-480.0,0.00019178,2]
[381831419,1756362642743,-770.42,0.00019178,2]
[381831420,1756362642752,-480.0,0.00019178,2]
[381831421,1756362642763,-375.50487939,0.00019178,2]
[381831422,1756362642772,-486.40926927,0.00019178,2]
[381831423,1756362642782,-816.85,0.00019178,2]
[381831424,1756362642795,-480.0,0.00019178,2]
[381831425,1756362642807,-351.35583089,0.00019178,2]
[381831426,1756362642818,-1989.98,0.00019178,2]
[381831427,1756362642828,-480.0,0.00019178,2]
[381831428,1756362642837,-480.0,0.00019178,2]
[381831429,1756362642848,-546.46,0.00019178,2]
[381831430,1756362642859,-480.0,0.00019178,2]
[381831431,1756362642868,-480.0,0.00019178,2]
[381831433,1756362642878,-481.37531657,0.00019178,2]
[381831435,1756362642887,-480.0,0.00019178,2]
[381831436,1756362642896,-1508.53,0.00019178,2]
[381831437,1756362642906,-480.0,0.00019178,2]
[381831438,1756362642915,-480.0,0.00019178,2]
[381831439,1756362642924,-480.0,0.00019178,2]
[381831440,1756362642935,-480.0,0.00019178,2]
[381831441,1756362642946,-480.0,0.00019178,2]
[381831442,1756362642955,-480.0,0.00019178,2]
[381831443,1756362642965,-480.0,0.00019178,2]
[381831444,1756362642975,-480.0,0.00019178,2]
[381831445,1756362642985,-1565.36,0.00019178,2]
[381831446,1756362642994,-1017.44,0.00019178,2]
[381831447,1756362643003,-480.0,0.00019178,2]
[381831448,1756362643012,-480.0,0.00019178,2]
[381831449,1756362643021,-480.0,0.00019178,2]
[381831451,1756362643030,-929.89,0.00019178,2]
[381831453,1756362643039,-480.0,0.00019178,2]
[381831454,1756362643048,-1017.55,0.00019178,2]
[381831455,1756362643057,-480.0,0.00019178,2]
[381831456,1756362643066,-3426.15,0.00019178,2]
[381831457,1756362643075,-632.58,0.00019178,2]
[381831458,1756362643085,-480.0,0.00019178,2]
[381831459,1756362643094,-480.0,0.00019178,2]
[381831460,1756362643103,-1101.64,0.00019178,2]
[381831461,1756362643113,-624.36,0.00019178,2]
[381831462,1756362643122,-480.95494393,0.00019178,2]
[381831463,1756362643131,-525.73,0.00019178,2]
[381831464,1756362643140,-480.0,0.00019178,2]
[381831465,1756362643149,-480.0,0.00019178,2]
[381831466,1756362643159,-514.09468967,0.00019178,2]
[381831467,1756362643168,-480.0,0.00019178,2]
[381831468,1756362643177,-480.0,0.00019178,2]
[381831469,1756362643186,-481.26417287,0.00019178,2]
[381831470,1756362643195,-719.32,0.00019178,2]
[381831471,1756362643204,-480.0,0.00019178,2]
[381831472,1756362643213,-480.0,0.00019178,2]
[381831473,1756362643223,-480.0,0.00019178,2]
[381831474,1756362643232,-1760.04,0.00019178,2]
[381831475,1756362643241,-480.0,0.00019178,2]
[381831476,1756362643250,-480.0,0.00019178,2]
[381831477,1756362643259,-480.0,0.00019178,2]
[381831478,1756362643269,-809.98,0.00019178,2]
[381831479,1756362643278,-736.6,0.00019178,2]
[381831480,1756362643287,-480.0,0.00019178,2]
[381831481,1756362643297,-480.0,0.00019178,2]
[381831482,1756362643306,-514.54225346,0.00019178,2]
[381831483,1756362643315,-480.0,0.00019178,2]
[381831484,1756362643325,-480.0,0.00019178,2]
[381831485,1756362643335,-480.0,0.00019178,2]
[381831486,1756362643344,-480.0,0.00019178,2]
[381831487,1756362643354,-480.0,0.00019178,2]
[381831488,1756362643364,-1025.89,0.00019178,2]
[381831489,1756362643373,-480.0,0.00019178,2]
[381831490,1756362643382,-480.0,0.00019178,2]
[381831491,1756362643391,-547.88722251,0.00019178,2]
[381831492,1756362643400,-480.0,0.00019178,2]
[381831493,1756362643414,-480.0,0.00019178,2]
[381831494,1756362643423,-480.0,0.00019178,2]
[381831495,1756362643433,-480.0,0.00019178,2]
[381831496,1756362643442,-480.0,0.00019178,2]
[381831497,1756362643452,-481.89548379,0.00019178,2]
[381831498,1756362643461,-480.0,0.00019178,2]
[381831499,1756362643470,-480.0,0.00019178,2]
[381831500,1756362643481,-480.0,0.00019178,2]
[381831501,1756362643490,-220.30247087,0.00019178,2]
[381831502,1756362643500,-480.0,0.00019178,2]
[381831503,1756362643509,-482.87282614,0.00019178,2]
[381831504,1756362643518,-480.0,0.00019178,2]
[381831505,1756362643527,-480.0,0.00019178,2]
[381831506,1756362643536,-480.0,0.00019178,2]
[381831507,1756362643545,-480.0,0.00019178,2]
[381831508,1756362643556,-1557.86,0.00019178,2]
[381831509,1756362643566,-480.0,0.00019178,2]
[381831510,1756362643577,-480.59520704,0.00019178,2]
[381831511,1756362643586,-3249.54,0.00019178,2]
[381831512,1756362643595,-767.47,0.00019178,2]
[381831513,1756362643605,-480.0,0.00019178,2]
[381831514,1756362643615,-480.0,0.00019178,2]
[381831515,1756362643624,-480.0,0.00019178,2]
[381831516,1756362643633,-480.0,0.00019178,2]
[381831517,1756362643643,-482.24585568,0.00019178,2]
[381831518,1756362643653,-480.0,0.00019178,2]
[381831519,1756362643663,-682.23,0.00019178,2]
[381831520,1756362643672,-2299.13,0.00019178,2]
[381831521,1756362643682,-626.7,0.00019178,2]
[381831522,1756362643691,-1163.49,0.00019178,2]
[381831523,1756362643700,-480.0,0.00019178,2]
[381831524,1756362643709,-480.0,0.00019178,2]
[381831525,1756362643719,-547.24,0.00019178,2]
[381831526,1756362643728,-482.01939828,0.00019178,2]
[381831527,1756362643738,-420.67992673,0.00019178,2]
[381831528,1756362643747,-480.0,0.00019178,2]
[381831529,1756362643756,-3000.0,0.000192,2]
[381831530,1756362643766,-2061.3450023,0.00019205,5]
[381831531,1756362643775,-2347.87260389,0.00019243,2]
[381831532,1756362643785,-162.03149582,0.00019252,2]
[381831533,1756362643794,-188.82379681,0.00019252,2]
[381831534,1756362643803,-302.66710251,0.00019278,2]
[381831535,1756362643812,-4152.59871153,0.00019284,2]
[381831536,1756362643823,-329.0,0.00019318,2]
[381831537,1756362643832,-151.0,0.000194,2]
[381831538,1756362643841,-151.0,0.000194,2]
[381831539,1756362643850,-1000.0,0.00019438,2]
[381831540,1756362643859,-1000.0,0.00019438,2]
[381831541,1756362643868,-1000.0,0.00019438,2]
[381831542,1756362643877,-187.78006525,0.00019438,2]
[381831543,1756362643886,-11331.40829341,0.00019438,2]
[381831544,1756362643895,-261.66573263,0.00019438,2]
[381831545,1756362643904,-151.0,0.00019438,2]
[381831546,1756362643913,-151.0,0.00019438,2]
[381831547,1756362643923,-151.0,0.00019438,2]
[381831548,1756362643932,-151.0,0.00019438,2]
[381831549,1756362643942,-151.0,0.00019438,2]
[381831550,1756362643951,-151.0,0.00019438,2]
[381831551,1756362643960,-300.0,0.00019438,2]
[381831552,1756362643970,-151.0,0.00019438,2]
[381831553,1756362643979,-151.0,0.00019438,2]
[381831554,1756362643988,-151.0,0.00019438,2]
[381831555,1756362643997,-151.0,0.00019438,2]
[381831556,1756362644006,-151.0,0.00019438,2]
[381831557,1756362644018,-151.0,0.00019438,2]
[381831558,1756362644029,-151.0,0.00019438,2]
[381831559,1756362644039,-151.0,0.00019438,2]
[381831560,1756362644048,-151.0,0.00019438,2]
[381831561,1756362644057,-151.0,0.00019438,2]
[381831562,1756362644066,-1000.0,0.00019438,2]
[381831563,1756362644076,-1469.66,0.0001944,2]
[381831564,1756362644085,-16446.15800989,0.0001945,2]
[381831565,1756362644095,-448117.17984658,0.0001945,2]
[381831566,1756362644104,-151.0,0.0001945,2]
[381831567,1756362644113,-151.0,0.0001945,2]
[381831568,1756362644122,-386.691604,0.0001945,2]
[381831569,1756362644132,-151.0,0.0001945,2]
[381831570,1756362644141,-386.691604,0.0001945,2]
[381831571,1756362644150,-151.0,0.0001945,2]
[381831572,1756362644159,-386.691604,0.0001945,2]
[381831573,1756362644169,-151.0,0.0001945,2]
[381831574,1756362644178,-386.691604,0.0001945,2]
[381831575,1756362644187,-151.0,0.0001945,2]
[381831576,1756362644197,-151.0,0.0001945,2]
[381831577,1756362644207,-151.0,0.0001945,2]
[381831578,1756362644217,-714.506186,0.0001945,2]
[381831579,1756362644226,-714.506186,0.0001945,2]
[381831580,1756362644235,-714.506186,0.0001945,2]
[381831581,1756362644245,-714.506186,0.0001945,2]
[381831582,1756362644254,-151.0,0.0001945,2]
[381831583,1756362644263,-151.0,0.0001945,2]
[381831584,1756362644273,-151.0,0.0001945,2]
[381831585,1756362644282,-704.792405,0.0001945,2]
[381831586,1756362644291,-151.0,0.0001945,2]
[381831587,1756362644301,-704.792405,0.0001945,2]
[381831588,1756362644310,-154.385979,0.0001945,2]
[381831589,1756362644319,-704.792405,0.0001945,2]
[381831590,1756362644330,-168.727286,0.0001945,2]
[381831591,1756362644339,-154.385979,0.0001945,2]
[381831592,1756362644348,-704.792405,0.0001945,2]
[381831593,1756362644357,-168.727286,0.0001945,2]
[381831594,1756362644367,-151.0,0.0001945,2]
[381831595,1756362644377,-154.385979,0.0001945,2]
[381831596,1756362644387,-168.727286,0.0001945,2]
[381831597,1756362644396,-151.0,0.0001945,2]
[381831598,1756362644408,-154.385979,0.0001945,2]
[381831599,1756362644417,-151.0,0.0001945,2]
[381831600,1756362644427,-168.727286,0.0001945,2]
[381831601,1756362644436,-151.0,0.0001945,2]
[381831602,1756362644445,-151.0,0.0001945,2]
[381831603,1756362644455,-151.0,0.0001945,2]
[381831604,1756362644464,-151.0,0.0001945,2]
[381831605,1756362644473,-151.0,0.0001945,2]
[381831606,1756362644483,-151.0,0.0001945,2]
[381831607,1756362644494,-157.554872,0.0001945,2]
[381831608,1756362644503,-153.954127,0.0001945,2]
[381831609,1756362644512,-151.0,0.0001945,2]
[381831610,1756362644521,-494.655098,0.0001945,2]
[381831611,1756362644531,-494.655098,0.0001945,2]
[381831612,1756362644540,-494.655098,0.0001945,2]
[381831613,1756362644549,-494.655098,0.0001945,2]
[381831614,1756362644559,-151.0,0.0001945,2]
[381831615,1756362644568,-151.0,0.0001945,2]
[381831616,1756362644578,-151.0,0.0001945,2]
[381831617,1756362644587,-151.0,0.0001945,2]
[381831618,1756362644596,-151.0,0.0001945,2]
[381831619,1756362644605,-151.0,0.0001945,2]
[381831620,1756362644614,-151.0,0.0001945,2]
[381831621,1756362644623,-218.186019,0.0001945,2]
[381831622,1756362644632,-151.0,0.0001945,2]
[381831623,1756362644642,-480.0,0.00019452,2]
[381831624,1756362644651,-480.0,0.00019452,2]
[381831625,1756362644661,-480.0,0.00019452,2]
[381831626,1756362644670,-480.0,0.00019452,2]
[381831627,1756362644679,-480.0,0.00019452,2]
[381831628,1756362644688,-480.0,0.00019452,2]
[381831629,1756362644698,-480.0,0.00019452,2]
[381831630,1756362644707,-480.0,0.00019452,2]
[381831631,1756362644717,-480.0,0.00019452,2]
[381831632,1756362644727,-480.0,0.00019452,2]
[381831633,1756362644736,-480.0,0.00019452,2]
[381831634,1756362644745,-480.0,0.00019452,2]
[381831635,1756362644755,-480.0,0.00019452,2]
[381831636,1756362644765,-482.6007025,0.00019452,2]
[381831637,1756362644774,-480.0,0.00019452,2]
[381831638,1756362644783,-480.0,0.00019452,2]
[381831639,1756362644793,-480.0,0.00019452,2]
[381831640,1756362644803,-480.0,0.00019452,2]
[381831641,1756362644812,-480.0,0.00019452,2]
[381831642,1756362644821,-480.0,0.00019452,2]
[381831643,1756362644831,-480.0,0.00019452,2]
[381831644,1756362644840,-480.0,0.00019452,2]
[381831645,1756362644850,-480.0,0.00019452,2]
[381831646,1756362644859,-480.0,0.00019452,2]
[381831647,1756362644868,-414.19910952,0.00019452,2]
[381831648,1756362644877,-480.0,0.00019452,2]
[381831649,1756362644886,-480.0,0.00019452,2]
[381831650,1756362644895,-480.0,0.00019452,2]
[381831651,1756362644906,-480.0,0.00019452,2]
[381831652,1756362644915,-480.0,0.00019452,2]
[381831653,1756362644925,-480.0,0.00019452,2]